bitfinex/quotes_BTCUSD_20250904
["timestamp","ask_amount","ask_price","bid_price","bid_amount"]
[1756972027989,0.45391471,110610.0,110600.0,0.42859781]
[1756972028228,0.00204711,110610.0,110600.0,0.44953663]
[1756972028436,0.02697017,110610.0,110600.0,0.87403353]
[1756972028644,4.711e-05,110610.0,110600.0,0.45577237]
[1756972029470,4.711e-05,110610.0,110600.0,0.45777237]
[1756972029675,4.711e-05,110610.0,110600.0,0.31005237]
[1756972029854,4.711e-05,110610.0,110600.0,0.46077237]
[1756972030386,0.42454401,110610.0,110600.0,0.31005237]
[1756972030591,0.42454401,110610.0,110600.0,0.46077237]
[1756972031027,4.711e-05,110610.0,110600.0,0.46077237]
[1756972031439,4.711e-05,110610.0,110600.0,1.33070499]
[1756972031866,4.711e-05,110610.0,110600.0,0.90620809]
[1756972033299,4.711e-05,110610.0,110600.0,0.90420809]
[1756972033457,4.711e-05,110610.0,110600.0,0.90220809]
[1756972034146,4.711e-05,110610.0,110600.0,0.47771119]
[1756972034320,4.711e-05,110610.0,110600.0,0.90220809]
[1756972034721,4.711e-05,110610.0,110600.0,1.32670499]
[1756972034933,4.711e-05,110610.0,110600.0,1.17698499]
[1756972035164,4.711e-05,110610.0,110600.0,1.32862499]
[1756972035942,4.711e-05,110610.0,110600.0,0.90412809]
[1756972036612,4.711e-05,110610.0,110600.0,0.90408809]
[1756972037408,4.711e-05,110610.0,110600.0,1.32858499]
[1756972037548,4.711e-05,110610.0,110600.0,0.89352182]
[1756972037768,4.711e-05,110610.0,110600.0,1.04512182]
[1756972037964,4.711e-05,110610.0,110600.0,1.04508182]
[1756972038485,4.711e-05,110610.0,110600.0,0.47955119]
[1756972038706,4.711e-05,110610.0,110600.0,0.89352182]
[1756972038914,4.711e-05,110610.0,110600.0,1.04508182]
[1756972039274,4.711e-05,110610.0,110600.0,0.89352182]
[1756972039476,4.711e-05,110610.0,110600.0,1.04508182]
[1756972040060,4.711e-05,110610.0,110600.0,0.89352182]
[1756972040268,4.711e-05,110610.0,110600.0,1.04504182]
[1756972040563,4.711e-05,110610.0,110600.0,0.47951119]
[1756972043444,4.711e-05,110610.0,110600.0,0.32799119]
[1756972043634,4.711e-05,110610.0,110600.0,0.47951119]
[1756972044401,4.711e-05,110610.0,110600.0,0.32799119]
[1756972044586,4.711e-05,110610.0,110600.0,0.47947119]
[1756972045574,4.711e-05,110610.0,110600.0,0.32799119]
[1756972045948,4.711e-05,110610.0,110600.0,0.47947119]
[1756972046340,4.711e-05,110610.0,110600.0,0.30705237]
[1756972046545,4.711e-05,110610.0,110600.0,0.45857237]
[1756972055549,4.711e-05,110610.0,110600.0,0.30705237]
[1756972055678,4.711e-05,110610.0,110600.0,0.45865237]
[1756972056078,0.56557774,110610.0,110600.0,0.45865237]
[1756972056330,0.56624774,110610.0,110600.0,0.30705237]
[1756972056528,0.56624774,110610.0,110600.0,0.45656237]
[1756972056697,0.56624774,110610.0,110600.0,0.42938781]
[1756972059315,0.56624774,110610.0,110600.0,0.42638781]
[1756972062648,0.74706321,110610.0,110600.0,0.42634781]
[1756972063277,0.74748321,110610.0,110600.0,0.24551599]
[1756972063483,0.74748321,110610.0,110600.0,0.002]
[1756972063484,1.31301384,110610.0,110600.0,0.002]
[1756972063661,1.46461384,110610.0,110600.0,0.002]
[1756972063860,1.49179463,110610.0,110600.0,0.002]
[1756972064473,1.34019463,110610.0,110600.0,0.002]
[1756972064684,0.774664,110610.0,110600.0,0.002]
[1756972064885,0.926264,110610.0,110600.0,0.002]
[1756972071304,1.83179463,110610.0,110600.0,0.002]
[1756972071531,1.88521039,110610.0,110600.0,0.002]
[1756972072970,1.73361039,110610.0,110600.0,0.002]
[1756972073199,1.88521039,110610.0,110600.0,0.002]
[1756972074194,1.73361039,110610.0,110600.0,0.002]
[1756972074356,1.88521039,110610.0,110600.0,0.002]
[1756972079527,1.73361039,110610.0,110600.0,0.002]
[1756972079724,1.88521039,110610.0,110600.0,0.002]
[1756972079923,1.16765976,110610.0,110600.0,0.002]
[1756972080133,1.31925976,110610.0,110600.0,0.002]
[1756972081769,1.88479039,110610.0,110600.0,0.002]
[1756972085648,1.88471039,110610.0,110600.0,0.002]
[1756972086045,1.73319039,110610.0,110600.0,0.002]
[1756972086338,1.88467039,110610.0,110600.0,0.002]
[1756972086568,1.85983039,110610.0,110600.0,0.002]
[1756972086970,1.85983039,110610.0,110600.0,0.001]
[1756972087178,1.86083039,110610.0,110600.0,0.001]
[1756972087833,1.70935039,110610.0,110600.0,0.001]
[1756972088034,1.86083039,110610.0,110600.0,0.001]
[1756972088238,0.18083182,110600.0,110590.0,0.18395806]
[1756972088406,1.46345308,110600.0,110590.0,0.00514]
[1756972089016,1.49063774,110600.0,110590.0,0.00514]
[1756972089212,1.49063774,110600.0,110590.0,0.18598817]
[1756972089638,0.92510711,110600.0,110590.0,0.18598817]
[1756972089834,0.35957648,110600.0,110590.0,0.18598817]
[1756972090064,0.92510711,110600.0,110590.0,0.18598817]
[1756972092665,0.02718466,110600.0,110590.0,0.27790416]
[1756972093089,0.71713774,110610.0,110600.0,0.18083182]
[1756972093312,0.74431757,110610.0,110600.0,0.27773781]
[1756972094034,0.17878694,110610.0,110600.0,0.27773781]
[1756972094239,0.74431757,110610.0,110600.0,0.27773781]
[1756972094564,0.74531757,110610.0,110600.0,0.27773781]
[1756972095398,0.74631757,110610.0,110600.0,0.27773781]
[1756972096139,0.18078694,110610.0,110600.0,0.27773781]
[1756972096342,0.74631757,110610.0,110600.0,0.27773781]
[1756972096974,0.02922694,110610.0,110600.0,0.27773781]
[1756972097228,0.00204711,110610.0,110600.0,0.42941781]
[1756972097852,0.56757774,110610.0,110600.0,0.42937781]
[1756972098733,0.00104711,110610.0,110600.0,0.42937781]
[1756972098910,0.56657774,110610.0,110600.0,0.42937781]
[1756972099060,0.90657774,110610.0,110600.0,0.42937781]
[1756972099263,0.90557774,110610.0,110600.0,0.42937781]
[1756972099458,0.76438767,110610.0,110600.0,0.42937781]
[1756972108432,0.76438767,110610.0,110600.0,0.45869662]
[1756972109063,0.76438767,110610.0,110600.0,0.30705662]
[1756972109269,0.76438767,110610.0,110600.0,0.45849662]
[1756972110314,0.76438767,110610.0,110600.0,0.30705662]
[1756972110516,0.76438767,110610.0,110600.0,0.45849662]
[1756972110716,0.76438767,110610.0,110600.0,0.30705662]
[1756972110944,0.76438767,110610.0,110600.0,0.45845662]
[1756972117907,0.76438767,110610.0,110600.0,0.30705662]
[1756972118320,0.42434056,110610.0,110600.0,0.45845662]
[1756972119447,0.42434056,110610.0,110600.0,0.30705662]
[1756972119708,0.42434056,110610.0,110600.0,0.45845662]
[1756972119967,0.81017018,110620.0,110610.0,0.18081547]
[1756972120183,0.81084018,110620.0,110610.0,0.27273146]
[1756972120420,0.81084018,110620.0,110610.0,0.27570146]
[1756972120637,0.18081547,110610.0,110600.0,0.36452063]
[1756972120869,0.1514,110610.0,110600.0,0.45643662]
[1756972121171,1.18156659,110610.0,110600.0,0.45643662]
[1756972121417,1.18198659,110610.0,110600.0,0.1212348]
[1756972121652,1.18198659,110610.0,110600.0,0.30206662]
[1756972121907,1.20916642,110610.0,110600.0,0.30206662]
[1756972122116,1.05734642,110610.0,110600.0,0.30503662]
[1756972122359,1.02726095,110610.0,110600.0,0.30717662]
[1756972122879,1.02793095,110610.0,110600.0,0.30717662]
[1756972123123,1.20874642,110610.0,110600.0,0.30503662]
[1756972123918,1.02793095,110610.0,110600.0,0.30503662]
[1756972124300,1.20874642,110610.0,110600.0,0.30503662]
[1756972125330,1.02793095,110610.0,110600.0,0.30503662]
[1756972126071,1.02793095,110610.0,110600.0,0.30717662]
[1756972126523,0.87653095,110610.0,110600.0,0.30717662]
[1756972126730,1.02789095,110610.0,110600.0,0.30717662]
[1756972128077,1.02789095,110610.0,110600.0,0.30503662]
[1756972131585,0.84250286,110610.0,110600.0,0.30503662]
[1756972137612,0.60355039,110610.0,110600.0,0.30503662]
[1756972138579,1.02789095,110610.0,110600.0,0.30717662]
[1756972138780,0.87653095,110610.0,110600.0,0.30717662]
[1756972138987,0.60339039,110610.0,110600.0,0.30717662]
[1756972139402,0.60339039,110610.0,110600.0,0.30503662]
[1756972139812,0.60339039,110610.0,110600.0,0.30717662]
[1756972142844,0.17908983,110610.0,110600.0,0.30717662]
[1756972143093,0.60625563,110610.0,110600.0,0.30717662]
[1756972143286,0.59343039,110610.0,110600.0,0.30717662]
[1756972143628,0.01784983,110610.0,110600.0,0.30717662]
[1756972143846,0.59621563,110610.0,110600.0,0.30717662]
[1756972144019,0.59339039,110610.0,110600.0,0.30717662]
[1756972146236,0.44219039,110610.0,110600.0,0.30717662]
[1756972146621,0.59339039,110610.0,110600.0,0.30717662]
[1756972148953,1.01773095,110610.0,110600.0,0.30503662]
[1756972149158,1.01815095,110610.0,110600.0,0.30206662]
[1756972149610,1.19896642,110610.0,110600.0,0.02931881]
[1756972150219,0.1990853,110610.0,110600.0,0.02931881]
[1756972150429,1.19896642,110610.0,110600.0,0.02931881]
[1756972152253,1.22754218,110610.0,110600.0,0.02931881]
[1756972156747,1.07634218,110610.0,110600.0,0.02931881]
[1756972157001,1.22758218,110610.0,110600.0,0.03251881]
[1756972159555,0.9449159,110610.0,110600.0,0.03251881]
[1756972159761,0.9449159,110610.0,110600.0,0.02931881]
[1756972160829,1.03683189,110610.0,110600.0,0.02931881]
[1756972161647,0.9449159,110610.0,110600.0,0.02931881]
[1756972163240,0.9449159,110610.0,110600.0,0.03251881]
[1756972164929,0.9449159,110610.0,110600.0,0.02931881]
[1756972165740,0.9449159,110610.0,110600.0,0.03251881]
[1756972165944,0.9444959,110610.0,110600.0,0.03251881]
[1756972166319,0.9449159,110610.0,110600.0,0.03251881]
[1756972169803,0.5956959,110610.0,110600.0,0.03251881]
[1756972170217,0.80369571,110610.0,110600.0,0.03251881]
[1756972172626,1.14369571,110610.0,110600.0,0.03251881]
[1756972174242,0.99249571,110610.0,110600.0,0.03251881]
[1756972174397,1.14361571,110610.0,110600.0,0.03251881]
[1756972175609,1.78772158,110610.0,110600.0,0.02931881]
[1756972175827,1.81391603,110610.0,110600.0,0.02931881]
[1756972176068,1.36942013,110610.0,110600.0,0.02931881]
[1756972176223,1.46133612,110610.0,110600.0,0.02931881]
[1756972177172,1.43514167,110610.0,110600.0,0.02931881]
[1756972180010,1.43514167,110610.0,110600.0,0.03233881]
[1756972181131,1.43514167,110610.0,110600.0,0.02931881]
[1756972181463,1.30354446,110610.0,110600.0,0.02931881]
[1756972181688,1.45462446,110610.0,110600.0,0.02931881]
[1756972182852,1.45462446,110610.0,110600.0,0.03233881]
[1756972183676,1.45462446,110610.0,110600.0,0.02931881]
[1756972185623,1.24662465,110610.0,110600.0,0.02931881]
[1756972185803,1.86956287,110610.0,110600.0,0.02931881]
[1756972186402,2.02064287,110610.0,110600.0,0.02931881]
[1756972186860,1.86956287,110610.0,110600.0,0.02931881]
[1756972187062,2.02064287,110610.0,110600.0,0.02931881]
[1756972187671,1.86956287,110610.0,110600.0,0.02931881]
[1756972187870,2.02064287,110610.0,110600.0,0.02931881]
[1756972188070,2.02060287,110610.0,110600.0,0.02931881]
[1756972189453,2.46930287,110610.0,110600.0,0.02931881]
[1756972194281,2.46926287,110610.0,110600.0,0.02931881]
[1756972194834,2.46926287,110610.0,110600.0,0.03233881]
[1756972195249,2.46926287,110610.0,110600.0,0.02931881]
[1756972195441,2.46926287,110610.0,110600.0,0.03233881]
[1756972195739,2.31826287,110610.0,110600.0,0.03233881]
[1756972195957,2.46926287,110610.0,110600.0,0.03233881]
[1756972196161,2.31826287,110610.0,110600.0,0.03233881]
[1756972196379,2.46926287,110610.0,110600.0,0.03233881]
[1756972199260,2.46926287,110610.0,110600.0,0.02931881]
[1756972199476,2.5198341,110610.0,110600.0,0.02931881]
[1756972200278,2.5208341,110610.0,110600.0,0.02931881]
[1756972201277,2.5208341,110610.0,110600.0,0.03233881]
[1756972201410,2.54277292,110610.0,110600.0,0.02931881]
[1756972201625,2.09307292,110610.0,110600.0,0.02931881]
[1756972201851,2.0994249,110610.0,110600.0,0.02931881]
[1756972202491,2.1004249,110610.0,110600.0,0.02931881]
[1756972202692,0.18083182,110600.0,110590.0,0.00302]
[1756972202900,1.73677627,110600.0,110590.0,0.00306711]
[1756972203313,1.76396731,110600.0,110590.0,0.00306711]
[1756972203710,2.55266731,110600.0,110590.0,0.00306711]
[1756972203918,2.57364613,110600.0,110590.0,0.00306711]
[1756972205636,2.42256613,110600.0,110590.0,0.00306711]
[1756972205821,2.57360613,110600.0,110590.0,0.00306711]
[1756972206010,2.42256613,110600.0,110590.0,0.00306711]
[1756972206211,2.57360613,110600.0,110590.0,0.00306711]
[1756972206972,2.61340518,110600.0,110590.0,0.00306711]
[1756972207946,2.46236518,110600.0,110590.0,0.00306711]
[1756972208363,2.61336518,110600.0,110590.0,0.00306711]
[1756972211068,2.46236518,110600.0,110590.0,0.00306711]
[1756972211539,2.61336518,110600.0,110590.0,0.00306711]
[1756972214711,2.43253336,110600.0,110590.0,0.00306711]
[1756972214941,2.61336518,110600.0,110590.0,0.00306711]
[1756972217368,1.3303355,110600.0,110590.0,0.00517711]
[1756972217568,1.38945951,110600.0,110590.0,0.00517711]
[1756972217776,2.52148919,110600.0,110590.0,0.00517711]
[1756972219465,2.66332215,110600.0,110590.0,0.00517711]
[1756972220853,1.38945951,110600.0,110590.0,0.00517711]
[1756972221060,2.51228215,110600.0,110590.0,0.00517711]
[1756972221354,2.75531814,110600.0,110590.0,0.00517711]
[1756972224826,2.77969492,110600.0,110590.0,0.00517711]
[1756972225033,2.73183727,110600.0,110590.0,0.00517711]
[1756972228387,2.73819581,110600.0,110590.0,0.00517711]
[1756972229844,2.69839676,110600.0,110590.0,0.00517711]
[1756972229971,2.67745794,110600.0,110590.0,0.00517711]
[1756972231644,2.7175014,110600.0,110590.0,0.00517711]
[1756972235103,2.74187818,110600.0,110590.0,0.00517711]
[1756972236309,2.74187818,110600.0,110590.0,0.00306711]
[1756972236442,2.74287818,110600.0,110590.0,0.00306711]
[1756972236645,2.74387818,110600.0,110590.0,0.00306711]
[1756972237124,2.74287818,110600.0,110590.0,0.00306711]
[1756972237562,2.74387818,110600.0,110590.0,0.00306711]
[1756972239391,2.74388279,110600.0,110590.0,0.00306711]
[1756972239763,2.71950601,110600.0,110590.0,0.00306711]
[1756972241840,2.76348235,110600.0,110590.0,0.00306711]
[1756972242488,2.61236235,110600.0,110590.0,0.00515711]
[1756972242698,2.15494949,110600.0,110590.0,0.00515711]
[1756972242910,0.93491328,110600.0,110590.0,0.00515711]
[1756972243121,2.12415504,110600.0,110590.0,0.00515711]
[1756972243589,2.10461,110600.0,110590.0,0.00515711]
[1756972243816,1.67544579,110600.0,110590.0,0.00515711]
[1756972244399,1.65591,110600.0,110590.0,0.00515711]
[1756972245659,0.52169106,110590.0,110580.0,0.18086252]
[1756972245863,1.09731194,110590.0,110580.0,0.18086252]
[1756972246036,1.09731194,110590.0,110580.0,0.18295252]
[1756972246398,1.1244984,110590.0,110580.0,0.18295252]
[1756972247676,1.1244984,110590.0,110580.0,0.18601252]
[1756972248529,1.1244984,110590.0,110580.0,0.00515]
[1756972249942,1.1244984,110590.0,110580.0,0.18601453]
[1756972250158,1.1244984,110590.0,110580.0,0.00515]
[1756972261341,0.54887752,110590.0,110580.0,0.00515]
[1756972261561,1.1244984,110590.0,110580.0,0.00515]
[1756972261969,1.1266084,110590.0,110580.0,0.00515]
[1756972262178,1.1296784,110590.0,110580.0,0.00306]
[1756972262828,1.1296784,110590.0,110580.0,0.00515]
[1756972267215,0.70505752,110590.0,110580.0,0.00515]
[1756972267665,1.1296784,110590.0,110580.0,0.00515]
[1756972268108,0.18087949,110580.0,110570.0,0.00306]
[1756972268469,0.18088088,110570.0,110560.0,0.0031]
[1756972268666,0.75861176,110570.0,110560.0,0.09710599]
[1756972269241,0.78580221,110570.0,110560.0,0.09710599]
[1756972269447,0.78888221,110570.0,110560.0,0.09710599]
[1756972270601,0.78580221,110570.0,110560.0,0.09710599]
[1756972270747,0.8777182,110570.0,110560.0,0.09710599]
[1756972270951,0.45309732,110570.0,110560.0,0.09710599]
[1756972271150,0.8777182,110570.0,110560.0,0.09710599]
[1756972271376,0.8777182,110570.0,110560.0,0.09910599]
[1756972271600,0.8807982,110570.0,110560.0,0.09910599]
[1756972272494,0.8807982,110570.0,110560.0,0.10210599]
[1756972272705,0.8807982,110570.0,110560.0,0.01019]
[1756972273464,0.8807982,110570.0,110560.0,0.0081]
[1756972276451,0.78888221,110570.0,110560.0,0.0081]
[1756972277655,1.21350309,110570.0,110560.0,0.0081]
[1756972278092,0.78888221,110570.0,110560.0,0.0081]
[1756972281243,0.5618182,110570.0,110560.0,0.01015]
[1756972281478,0.74269908,110570.0,110560.0,0.01015]
[1756972281671,0.89817253,110570.0,110560.0,0.01015]
[1756972284300,0.18088088,110570.0,110560.0,0.03016071]
[1756972284508,0.89817253,110570.0,110560.0,0.03016071]
[1756972284738,0.89817253,110570.0,110560.0,0.01015]
[1756972285257,0.74717253,110570.0,110560.0,0.01015]
[1756972285453,0.89817253,110570.0,110560.0,0.01015]
[1756972291769,0.89817253,110570.0,110560.0,0.19104725]
[1756972291969,0.74717253,110570.0,110560.0,0.19104725]
[1756972292175,0.89829253,110570.0,110560.0,0.19104725]
[1756972292841,0.99020852,110570.0,110560.0,0.0081]
[1756972294163,0.99020852,110570.0,110560.0,0.00504]
[1756972294309,1.01740173,110570.0,110560.0,0.00504]
[1756972294696,1.01740173,110570.0,110560.0,0.0082]
[1756972294903,0.92548574,110570.0,110560.0,0.0082]
[1756972297880,0.35919409,110570.0,110560.0,0.01025]
[1756972298112,0.35919409,110570.0,110560.0,0.0082]
[1756972299129,0.92548574,110570.0,110560.0,0.0082]
[1756972300544,0.35919409,110570.0,110560.0,0.0082]
[1756972300776,0.92548574,110570.0,110560.0,0.0082]
[1756972302310,0.35923409,110570.0,110560.0,0.01029]
[1756972304614,0.02719321,110570.0,110560.0,0.30222349]
[1756972304825,0.17835321,110570.0,110560.0,0.30222349]
[1756972305163,0.33486714,110570.0,110560.0,0.28310324]
[1756972305364,0.15116,110570.0,110560.0,0.28310324]
[1756972305537,0.00282626,110570.0,110560.0,0.28310324]
[1756972305760,0.15112,110570.0,110560.0,0.28310324]
[1756972306321,0.15394626,110570.0,110560.0,0.28310324]
[1756972306518,0.31770098,110580.0,110560.0,0.84939489]
[1756972306754,0.73942098,110580.0,110570.0,0.18402088]
[1756972306965,0.73942098,110580.0,110570.0,0.18611088]
[1756972307364,0.73942098,110580.0,110570.0,0.00523]
[1756972309256,0.73942098,110580.0,110570.0,0.18611088]
[1756972309470,0.17843087,110580.0,110570.0,0.18611088]
[1756972309666,0.154066,110580.0,110570.0,0.18811088]
[1756972311407,0.154026,110580.0,110570.0,0.18811088]
[1756972320595,0.36803201,110590.0,110580.0,0.18086453]
[1756972320820,0.36803201,110590.0,110580.0,0.18609453]
[1756972321046,0.00084289,110590.0,110580.0,0.84430217]
[1756972321274,0.15220289,110590.0,110580.0,0.84430217]
[1756972322029,0.00084289,110590.0,110580.0,0.84430217]
[1756972323411,0.00084289,110590.0,110580.0,0.99566217]
[1756972325798,0.00084289,110590.0,110580.0,0.42937052]
[1756972325966,0.00084289,110590.0,110580.0,0.99566217]
[1756972327739,0.00084289,110590.0,110580.0,1.02284424]
[1756972328799,0.00084289,110590.0,110580.0,1.02384424]
[1756972329020,0.00084289,110590.0,110580.0,1.02484424]
[1756972331425,0.00084289,110590.0,110580.0,0.45855259]
[1756972331656,0.00084289,110590.0,110580.0,1.02484424]
[1756972335683,0.00084289,110590.0,110580.0,0.45855259]
[1756972335901,0.00084289,110590.0,110580.0,1.02484424]
[1756972336733,0.00084289,110590.0,110580.0,1.02384424]
[1756972337155,0.00084289,110590.0,110580.0,1.02584424]
[1756972337984,0.00084289,110590.0,110580.0,1.02484424]
[1756972338428,0.00084289,110590.0,110580.0,1.02584424]
[1756972341590,0.00084289,110590.0,110580.0,1.30815293]
[1756972344126,0.00084289,110590.0,110580.0,1.32909175]
[1756972351169,0.00084289,110590.0,110580.0,1.32809175]
[1756972351373,0.00084289,110590.0,110580.0,1.33009175]
[1756972352545,0.00084289,110590.0,110580.0,1.32809175]
[1756972352958,0.00084289,110590.0,110580.0,1.33009175]
[1756972358048,0.00084289,110590.0,110580.0,1.38009175]
[1756972361767,0.00084289,110590.0,110580.0,0.53149141]
[1756972361946,0.00084289,110590.0,110580.0,1.22873175]
[1756972362155,0.00084289,110590.0,110580.0,1.37973175]
[1756972363225,0.00084289,110590.0,110580.0,1.37989175]
[1756972367786,0.00084289,110590.0,110580.0,1.22873175]
[1756972367990,0.00084289,110590.0,110580.0,1.37989175]
[1756972369327,7.467e-05,110590.0,110580.0,1.37989175]
[1756972372830,7.467e-05,110590.0,110580.0,1.22873175]
[1756972373053,7.467e-05,110590.0,110580.0,1.38001175]
[1756972374333,7.467e-05,110590.0,110580.0,1.44953175]
[1756972374548,0.25605259,110620.0,110610.0,0.18081547]
[1756972374762,0.25609972,110620.0,110610.0,0.42405146]
[1756972375662,0.25709972,110620.0,110610.0,0.42405146]
[1756972376285,0.25909972,110620.0,110610.0,0.42405146]
[1756972377169,0.27302718,110620.0,110610.0,0.42405146]
[1756972383436,0.44127476,110620.0,110610.0,0.42405146]
[1756972389057,0.44127476,110620.0,110610.0,0.42717146]
[1756972390464,0.44127476,110620.0,110610.0,0.42709146]
[1756972395322,0.44127476,110620.0,110610.0,0.42909146]
[1756972395523,0.01697459,110620.0,110610.0,0.42909146]
[1756972396934,0.44127476,110620.0,110610.0,0.42909146]
[1756972397123,0.01697459,110620.0,110610.0,0.42909146]
[1756972397260,0.44127476,110620.0,110610.0,0.42909146]
[1756972398353,0.01697459,110620.0,110610.0,0.42909146]
[1756972401130,0.01697459,110620.0,110610.0,0.85339163]
[1756972401608,0.01697459,110620.0,110610.0,1.02178445]
[1756972402006,0.00304713,110620.0,110610.0,1.02178445]
[1756972402687,0.01598424,110620.0,110610.0,1.02178445]
[1756972402904,0.00204713,110620.0,110610.0,1.02278445]
[1756972403130,4.713e-05,110620.0,110610.0,1.02278445]
[1756972403362,4.713e-05,110620.0,110610.0,1.02378445]
[1756972406141,4.713e-05,110620.0,110610.0,0.45826615]
[1756972406566,0.0139116,110620.0,110610.0,0.45826615]
[1756972407189,0.0139116,110620.0,110610.0,0.45818615]
[1756972408014,0.0059116,110620.0,110610.0,0.45818615]
[1756972408218,0.5655183,110630.0,110620.0,0.18079913]
[1756972408425,0.56598966,110630.0,110620.0,0.27793512]
[1756972408925,0.56598966,110630.0,110620.0,0.30510944]
[1756972409546,0.00047136,110630.0,110620.0,0.30510944]
[1756972409745,0.56598966,110630.0,110620.0,0.30510944]
[1756972410768,0.57983284,110630.0,110620.0,0.30510944]
[1756972418451,0.57983284,110630.0,110620.0,0.27793512]
[1756972419838,0.57983284,110630.0,110620.0,0.42893512]
[1756972420249,0.73083284,110630.0,110620.0,0.42893512]
[1756972420940,0.73083284,110630.0,110620.0,0.27593512]
[1756972421142,0.73083284,110630.0,110620.0,0.42693512]
[1756972421978,0.73083284,110630.0,110620.0,0.27593512]
[1756972422213,0.73083284,110630.0,110620.0,0.27802512]
[1756972422486,0.73083284,110630.0,110620.0,0.42697512]
[1756972425676,0.73083284,110630.0,110620.0,0.42906512]
[1756972431940,0.73083284,110630.0,110620.0,0.42902512]
[1756972433150,0.16531454,110630.0,110620.0,0.42902512]
[1756972433364,0.73083284,110630.0,110620.0,0.42902512]
[1756972435496,0.72483284,110630.0,110620.0,0.42902512]
[1756972435961,0.72483284,110630.0,110620.0,0.42906512]
[1756972436176,0.15931454,110630.0,110620.0,0.42906512]
[1756972436389,0.15935454,110630.0,110620.0,0.42906512]
[1756972436625,0.00831454,110630.0,110620.0,0.42906512]
[1756972436849,0.72487284,110630.0,110620.0,0.42906512]
[1756972437099,0.7165583,110630.0,110620.0,0.42906512]
[1756972437308,0.7408368,110630.0,110620.0,0.42906512]
[1756972440349,0.5897968,110630.0,110620.0,0.42906512]
[1756972444571,0.0242785,110630.0,110620.0,0.42906512]
[1756972444802,0.5655183,110650.0,110640.0,0.18076644]
[1756972445054,0.7165183,110650.0,110640.0,0.27770243]
[1756972445497,0.7165183,110650.0,110640.0,0.42870243]
[1756972445691,0.58989523,110650.0,110640.0,0.42870243]
[1756972445914,0.17737693,110650.0,110640.0,0.42870243]
[1756972446164,0.74289523,110650.0,110640.0,0.42870243]
[1756972446369,0.74289523,110650.0,110640.0,0.45587185]
[1756972446818,0.74589523,110650.0,110640.0,0.45587185]
[1756972447765,0.74389523,110650.0,110640.0,0.45587185]
[1756972447975,0.74089523,110650.0,110640.0,0.42870243]
[1756972448174,0.74289523,110650.0,110640.0,0.42870243]
[1756972448589,0.74089523,110650.0,110640.0,0.42870243]
[1756972450062,0.74089523,110650.0,110640.0,0.27770243]
[1756972450272,0.74089523,110650.0,110640.0,0.42882243]
[1756972450676,0.92164534,110650.0,110640.0,0.09191599]
[1756972452342,0.94881678,110650.0,110640.0,0.09191599]
[1756972455677,0.94881678,110650.0,110640.0,0.27268243]
[1756972456312,0.94881678,110650.0,110640.0,0.27565243]
[1756972456619,0.76806667,110650.0,110640.0,0.27565243]
[1756972456840,0.94881678,110650.0,110640.0,0.27565243]
[1756972460441,0.94881678,110650.0,110640.0,0.09488599]
[1756972461063,0.94881678,110650.0,110640.0,0.27565243]
[1756972462095,0.94881678,110650.0,110640.0,0.27781243]
[1756972463527,1.23157562,110650.0,110640.0,0.27781243]
[1756972477602,1.16854,110650.0,110640.0,0.27781243]
[1756972478773,1.2046354,110650.0,110640.0,0.27781243]
[1756972479387,0.61119397,110650.0,110640.0,0.27781243]
[1756972479599,0.46023397,110650.0,110640.0,0.27781243]
[1756972479801,0.61119397,110650.0,110640.0,0.27781243]
[1756972480203,0.61132171,110650.0,110640.0,0.27781243]
[1756972480825,0.64111182,110650.0,110640.0,0.42877243]
[1756972482092,0.46036171,110650.0,110640.0,0.42877243]
[1756972482715,0.61132171,110650.0,110640.0,0.42877243]
[1756972486740,0.79207182,110650.0,110640.0,0.27781243]
[1756972486944,0.79207182,110650.0,110640.0,0.42877243]
[1756972490429,1.21621039,110650.0,110640.0,0.42877243]
[1756972496526,0.79207182,110650.0,110640.0,0.42877243]
[1756972497544,0.64111182,110650.0,110640.0,0.42877243]
[1756972497771,0.46036171,110650.0,110640.0,0.42877243]
[1756972499614,0.61132171,110650.0,110640.0,0.42877243]
[1756972500440,0.79207182,110650.0,110640.0,0.27781243]
[1756972500637,0.79207182,110650.0,110640.0,0.42877243]
[1756972502016,0.46036171,110650.0,110640.0,0.42877243]
[1756972502219,0.61132171,110650.0,110640.0,0.42877243]
[1756972502433,0.46036171,110650.0,110640.0,0.42877243]
[1756972504093,0.03622314,110650.0,110640.0,0.42877243]
[1756972504288,0.46036171,110650.0,110640.0,0.42877243]
[1756972508593,0.46036171,110650.0,110640.0,0.45594209]
[1756972514352,0.46036171,110650.0,110640.0,0.45590209]
[1756972525465,0.6016429,110650.0,110640.0,0.45590209]
[1756972535848,0.03622314,110650.0,110640.0,1.11174067]
[1756972536247,0.00012774,110650.0,110640.0,1.11174067]
[1756972536950,0.03728594,110650.0,110640.0,1.11174067]
[1756972537195,0.00012774,110650.0,110640.0,1.11174067]
[1756972537430,0.03615002,110650.0,110640.0,1.11174067]
[1756972537657,0.00012774,110650.0,110640.0,1.11174067]
[1756972539262,0.00012774,110650.0,110640.0,1.11374067]
[1756972540829,0.00012774,110650.0,110640.0,0.54832091]
[1756972541066,0.00012774,110650.0,110640.0,1.11374067]
[1756972541310,0.00012774,110650.0,110640.0,1.11574067]
[1756972550320,0.00012774,110650.0,110640.0,1.11566067]
[1756972560446,0.00012774,110650.0,110640.0,0.55024091]
[1756972560649,0.00012774,110650.0,110640.0,1.11566067]
[1756972562015,0.00012774,110650.0,110640.0,0.55024091]
[1756972565206,8.33e-06,110650.0,110640.0,1.11566067]
[1756972567930,8.33e-06,110650.0,110640.0,0.55024091]
[1756972575402,0.56541976,110670.0,110660.0,0.18073377]
[1756972575576,0.56541976,110670.0,110660.0,0.42344976]
[1756972576138,0.60264048,110670.0,110660.0,0.45061426]
[1756972577889,0.60268757,110670.0,110660.0,0.45061426]
[1756972579628,0.03726781,110670.0,110660.0,0.45061426]
[1756972579782,0.60268757,110670.0,110660.0,0.45061426]
[1756972581080,0.60268757,110670.0,110660.0,0.45380426]
[1756972585010,0.60268757,110670.0,110660.0,0.30300426]
[1756972585386,0.60268757,110670.0,110660.0,0.45057426]
[1756972585592,0.4611759,110670.0,110660.0,0.45057426]
[1756972586458,0.4611759,110670.0,110660.0,0.29981426]
[1756972587022,0.4611759,110670.0,110660.0,0.45057426]
[1756972587201,1.06580143,110670.0,110660.0,0.11908049]
[1756972587440,1.06580143,110670.0,110660.0,0.42340976]
[1756972588064,1.06580143,110670.0,110660.0,0.27264976]
[1756972588264,1.06580143,110670.0,110660.0,0.42340976]
[1756972589252,0.21798525,110670.0,110660.0,0.27264976]
[1756972589460,1.06580143,110670.0,110660.0,0.27264976]
[1756972590083,0.03726781,110670.0,110660.0,0.27583976]
[1756972590292,0.4611759,110670.0,110660.0,0.27794976]
[1756972591122,0.4611759,110670.0,110660.0,0.27583976]
[1756972596235,0.4611759,110670.0,110660.0,0.27794976]
[1756972597043,0.4611759,110670.0,110660.0,0.42870976]
[1756972600746,1.06580143,110670.0,110660.0,0.09191599]
[1756972601893,1.06580143,110670.0,110660.0,0.27264976]
[1756972602320,0.18798781,110670.0,110660.0,0.27791976]
[1756972602548,0.6118959,110670.0,110660.0,0.27791976]